bitfinex-derivatives/quotes_SOLF0:USTF0_20241021
["timestamp","ask_amount","ask_price","bid_price","bid_amount"]
[1729502167007,2.6285,167.71,167.64,2.9838]
[1729502168997,1.3547,167.71,167.66,2.9835]
[1729502169300,4.72,167.72,167.66,2.9835]
[1729502170101,4.72,167.72,167.65,2.9837]
[1729502171008,4.72,167.72,167.64,2.9838]
[1729502173710,4.72,167.72,167.63,2.984]
[1729502174012,1.2594,167.71,167.63,2.984]
[1729502175310,1.2594,167.71,167.58,2.9848]
[1729502175505,1.2594,167.71,167.56,4.7]
[1729502175808,1.2594,167.71,167.56,7.66452188]
[1729502176414,1.2594,167.71,167.61,2.9843]
[1729502176615,1.2594,167.71,167.56,7.66452188]
[1729502177810,1.2594,167.71,167.6,2.9846]
[1729502178415,4.7,167.7,167.6,2.9846]
[1729502179919,1.2594,167.71,167.6,2.9846]
[1729502180120,4.7,167.7,167.56,4.7]
[1729502180321,4.7,167.69,167.55,3.9284]
[1729502180713,1.3579,167.68,167.55,3.9284]
[1729502181116,1.2578,167.67,167.55,3.9284]
[1729502182810,1.2578,167.67,167.58,2.9848]
[1729502183820,1.3579,167.68,167.55,3.9284]
[1729502184017,4.7,167.67,167.55,3.9284]
[1729502184421,4.7,167.67,167.62,2.9841]
[1729502188531,4.7,167.67,167.61,2.9843]
[1729502191631,4.7,167.67,167.58,4.7]
[1729502191830,4.7,167.67,167.6,2.9845]
[1729502192334,17.92,167.73,167.55,3.9284]
[1729502192335,80.90250338,167.83,167.55,8.6284]
[1729502192534,4.7,167.73,167.63,2.984]
[1729502192730,3.9385,167.72,167.63,2.984]
[1729502193629,3.9385,167.72,167.6,2.9846]
[1729502193828,21.8585,167.72,167.57,4.7]
[1729502194041,21.8585,167.72,167.59,2.9846]
[1729502195034,21.8585,167.72,167.55,3.9284]
[1729502195239,21.8585,167.72,167.58,2.9848]
[1729502195436,21.8585,167.72,167.53,79.16946474]
[1729502197541,21.8585,167.72,167.56,2.9852]
[1729502197835,53.93500225,167.71,167.56,2.9852]
[1729502198041,17.92,167.7,167.56,2.9852]
[1729502198336,64.5,167.69,167.58,2.9848]
[1729502198539,4.7,167.68,167.53,79.16946474]
[1729502199343,4.7,167.68,167.59,2.9846]
[1729502199932,4.7,167.67,167.59,2.9846]
[1729502204440,4.7,167.67,167.56,2.9851]
[1729502204746,3.8171,167.66,167.52,4.7]
[1729502205335,3.8171,167.66,167.58,2.9849]
[1729502208651,3.8171,167.66,167.5,3.91]
[1729502208845,3.8171,167.66,167.51,4.7]
[1729502209244,3.8171,167.66,167.55,2.9854]
[1729502209441,4.7,167.65,167.55,2.9854]
[1729502209642,4.7,167.65,167.5,3.91]
[1729502209847,4.7,167.65,167.56,2.9853]
[1729502210051,4.7,167.65,167.51,2.97891045]
[1729502210452,4.7,167.65,167.57,2.985]
[1729502211749,4.7,167.65,167.55,2.9853]
[1729502213255,4.7,167.65,167.56,2.9852]
[1729502213454,4.7,167.65,167.5,3.91]
[1729502213854,4.7,167.65,167.57,2.985]
[1729502220464,4.7,167.65,167.55,2.9854]
[1729502220668,4.7,167.65,167.5,3.91]
[1729502221369,4.7,167.65,167.56,2.9853]
[1729502221963,22.62,167.65,167.42,2.98411548]
[1729502222267,22.62,167.65,167.48,1.2301]
[1729502222462,22.62,167.65,167.43,7.3005]
[1729502222661,22.62,167.65,167.44,1.2301]
[1729502222862,1.0,167.64,167.44,1.2301]
[1729502223063,1.0,167.64,167.48,2.9867]
[1729502223265,17.92,167.63,167.48,2.9867]
[1729502223457,20.8884508,167.63,167.48,2.9867]
[1729502224065,2.9684508,167.63,167.44,1.2301]
[1729502224267,126.83362471,167.64,167.44,1.2301]
[1729502224462,4.7,167.62,167.44,1.2301]
[1729502224670,4.7,167.62,167.53,2.9857]
[1729502225865,4.7,167.62,167.52,2.986]
[1729502226970,4.7,167.62,167.47,4.7]
[1729502227270,4.7,167.62,167.52,2.9859]
[1729502227969,4.7,167.61,167.52,2.9859]
[1729502233069,4.7,167.61,167.47,4.7]
[1729502233070,4.7,167.61,167.51,2.9862]
[1729502236571,4.7,167.61,167.47,4.7]
[1729502236772,1.3519,167.6,167.44,5.9301]
[1729502237067,129.84110337,167.64,167.44,5.9301]
[1729502237271,4.7,167.63,167.56,2.9853]
[1729502238172,4.7,167.62,167.5,2.5203]
[1729502238369,4.7,167.62,167.55,2.9854]
[1729502239067,4.7,167.62,167.53,2.9858]
[1729502239272,4.7,167.62,167.5,2.5203]
[1729502240266,22.62,167.62,167.46,1.2744]
[1729502240469,22.62,167.62,167.42,7.2024]
[1729502241772,22.62,167.62,167.47,2.9868]
[1729502242568,76.55500225,167.62,167.47,2.9868]
[1729502242872,22.62,167.62,167.46,2.9871]
[1729502243671,1.0,167.61,167.42,5.4901]
[1729502243878,1.0,167.61,167.42,1.2523]
[1729502244069,17.92,167.6,167.42,1.2523]
[1729502244467,17.92,167.58,167.37,2.618]
[1729502244663,3.8523,167.59,167.37,3.8746]
[1729502244664,17.92,167.56,167.37,3.8746]
[1729502244871,17.92,167.56,167.39,2.9883]
[1729502245367,17.92,167.56,167.38,2.9885]
[1729502245674,1.0,167.55,167.38,2.9885]
[1729502246175,1.0,167.55,167.39,2.9882]
[1729502246372,17.92,167.54,167.39,2.9882]
[1729502246577,4.7,167.53,167.39,2.9882]
[1729502246777,9.04327947,167.53,167.39,2.9882]
[1729502246970,2.6218,167.52,167.39,2.9882]
[1729502247169,2.6218,167.52,167.37,3.8746]
[1729502247374,2.6218,167.52,167.4,2.9881]
[1729502247674,2.6218,167.52,167.37,3.8746]
[1729502248073,4.7,167.51,167.37,3.8746]
[1729502248372,4.7,167.51,167.38,4.7]
[1729502248576,4.7,167.51,167.42,2.9876]
[1729502249566,4.7,167.51,167.38,4.7]
[1729502249567,4.7,167.51,167.41,2.9879]
[1729502250179,4.7,167.51,167.4,2.9881]
[1729502250667,4.7,167.51,167.37,3.8746]
[1729502251073,1.3144,167.52,167.37,3.8746]
[1729502251269,4.7,167.51,167.45,2.9871]
[1729502253074,4.7,167.51,167.4,4.7]
[1729502253377,4.7,167.51,167.46,2.9871]
[1729502256379,4.7,167.51,167.4,4.7]
[1729502256580,4.7,167.51,167.45,2.9872]
[1729502257281,4.7,167.51,167.43,2.9875]
[1729502257473,4.7,167.51,167.39,4.7]
[1729502257673,4.7,167.51,167.37,3.8746]
[1729502257880,4.7,167.51,167.4,2.9881]
[1729502258892,4.7,167.51,167.41,2.988]
[1729502259981,4.7,167.51,167.37,3.8746]
[1729502260481,4.7,167.51,167.38,2.9884]
[1729502260682,4.7,167.51,167.37,3.8746]
[1729502261485,4.7,167.51,167.39,2.9883]
[1729502261985,4.7,167.51,167.37,3.8746]
[1729502262188,22.64,167.51,167.37,1.2566]
[1729502262387,22.64,167.51,167.32,2.5858]
[1729502262584,22.64,167.51,167.28,6.0476]
[1729502262883,1.0,167.5,167.31,126.70117208]
[1729502263289,2.6545,167.49,167.31,123.71157208]
[1729502263491,2.6545,167.49,167.32,2.9895]
[1729502263690,2.6545,167.49,167.31,123.71157208]
[1729502263691,1.2869,167.48,167.31,123.71157208]
[1729502263892,22.64,167.47,167.31,123.71157208]
[1729502264889,22.64,167.47,167.33,2.9894]
[1729502267984,4.7,167.46,167.34,2.9891]
[1729502268185,4.7,167.46,167.31,123.71157208]
[1729502268693,4.7,167.45,167.31,123.71157208]
[1729502268892,4.7,167.45,167.35,2.989]
[1729502269285,4.7,167.45,167.31,123.71157208]
[1729502269898,4.7,167.45,167.35,2.989]
[1729502270094,4.7,167.45,167.31,123.71157208]
[1729502271197,4.7,167.45,167.34,2.9892]
[1729502275195,4.7,167.45,167.36,2.9889]
[1729502276803,4.7,167.45,167.35,2.989]
[1729502279499,4.7,167.45,167.34,2.9892]
[1729502279800,4.7,167.45,167.31,123.71157208]
[1729502281193,22.64,167.45,167.31,123.71157208]
[1729502281403,87.24,167.45,167.31,123.71157208]
[1729502282198,87.24,167.45,167.31,2.9896]
[1729502284394,87.24,167.45,167.3,2.9898]
[1729502289109,87.24,167.45,167.31,2.9898]
[1729502290103,64.6,167.45,167.28,3.9334]
[1729502290413,4.7,167.44,167.28,3.9334]
[1729502290711,64.6,167.45,167.28,3.9334]
[1729502290906,4.7,167.44,167.28,3.9334]
[1729502291100,7.66511234,167.44,167.28,3.9334]
[1729502291306,7.66511234,167.44,167.34,2.9891]
[1729502291709,7.66511234,167.44,167.3,4.7]
[1729502291910,7.66511234,167.44,167.35,2.9889]
[1729502297115,7.66511234,167.44,167.34,2.9892]
[1729502301821,2.5572,167.43,167.34,2.9892]
[1729502302519,2.5572,167.43,167.33,2.9894]
[1729502302719,1.2563,167.42,167.33,2.9894]
[1729502307224,2.5572,167.43,167.3,4.68]
[1729502307430,4.68,167.42,167.3,4.68]
[1729502308027,4.68,167.42,167.37,2.9887]
[1729502309832,4.68,167.42,167.32,4.68]
[1729502310031,4.68,167.42,167.36,2.9888]
[1729502313328,64.6,167.45,167.4,2.9881]
[1729502313530,4.68,167.45,167.4,2.9881]
[1729502314629,4.68,167.45,167.37,3.9024]
[1729502314830,4.68,167.45,167.42,2.9877]
[1729502315728,4.68,167.47,167.42,2.9877]
[1729502316328,4.68,167.47,167.37,3.9024]
[1729502316527,3.00167947,167.53,167.37,3.9024]
[1729502316724,4.68,167.5,167.37,3.9024]
[1729502317133,4.68,167.5,167.46,2.9871]
[1729502318136,3.00167947,167.53,167.47,2.9868]
[1729502318329,4.68,167.52,167.43,1.257]
[1729502318725,4.68,167.52,167.44,2.9873]
[1729502319537,4.68,167.52,167.45,2.9872]
[1729502321036,64.6,167.54,167.43,1.257]
[1729502321241,4.68,167.54,167.43,1.257]
[1729502321437,4.68,167.54,167.44,2.4867]
[1729502321740,4.68,167.54,167.49,2.9864]
[1729502321939,4.68,167.54,167.44,2.4867]
[1729502322238,4.68,167.54,167.47,2.9869]
[1729502322442,4.68,167.54,167.44,2.4867]
[1729502322443,4.68,167.54,167.46,4.68]
[1729502324236,4.68,167.54,167.5,2.9863]
[1729502324438,4.68,167.56,167.5,2.9863]
[1729502325534,4.68,167.55,167.5,2.9863]
[1729502329844,4.68,167.55,167.47,2.9868]
[1729502336148,7.71258813,167.55,167.47,2.9868]
[1729502336554,4.68,167.55,167.47,2.9868]
[1729502336846,4.68,167.55,167.46,4.68]
[1729502337043,7.70003035,167.55,167.46,7.667]
[1729502337741,7.70003035,167.55,167.44,2.4867]
[1729502337946,7.70003035,167.55,167.43,1.257]
[1729502338153,7.70003035,167.55,167.42,4.68]
[1729502338352,25.64003035,167.55,167.39,1.3052]
[1729502339048,25.64003035,167.55,167.4,82.22130775]
[1729502339849,25.64003035,167.55,167.4,79.23320775]
[1729502340247,25.64003035,167.55,167.35,4.68]
[1729502340452,1.0,167.54,167.33,4.68]
[1729502340747,17.94,167.52,167.33,4.68]
[1729502340955,17.94,167.5,167.33,4.68]
[1729502341248,2.513,167.49,167.32,1.3058]
[1729502341453,2.513,167.49,167.3,4.68]
[1729502341454,17.94,167.48,167.3,4.68]
[1729502341649,22.62,167.47,167.27,2.9905]
[1729502341846,22.62,167.47,167.27,4.68]
[1729502342247,76.55500225,167.47,167.27,4.68]
[1729502342548,17.94,167.45,167.27,4.68]
[1729502342753,20.95795067,167.45,167.26,3.9039]
[1729502342956,20.95795067,167.45,167.26,6.8945]
[1729502345454,17.94,167.43,167.26,6.8945]
[1729502345655,17.94,167.43,167.27,2.9904]
[1729502346242,20.94167883,167.43,167.27,2.9904]
[1729502348751,2.5888,167.42,167.27,2.9904]
[1729502349248,1.2886,167.41,167.27,2.9904]
[1729502349552,4.68,167.4,167.27,2.9904]
[1729502350948,4.68,167.4,167.26,6.8945]
[1729502351156,4.68,167.4,167.26,3.9039]
[1729502351352,22.62,167.4,167.21,1.3188]
[1729502351649,22.62,167.4,167.23,83.99074598]
[1729502352049,25.65340145,167.4,167.23,83.99074598]
[1729502352954,25.65340145,167.4,167.23,86.98194598]
[1729502355158,25.65340145,167.4,167.23,83.99074598]
[1729502355357,25.65340145,167.4,167.23,79.31074598]
[1729502355558,17.94,167.38,167.23,79.31074598]
[1729502364465,17.94,167.38,167.24,2.991]
[1729502364661,17.94,167.38,167.24,4.245]
[1729502365262,4.68,167.37,167.24,4.245]
[1729502368365,64.6,167.39,167.24,1.254]
[1729502368568,4.68,167.38,167.24,1.254]
[1729502371366,4.68,167.38,167.24,4.245]
[1729502372869,82.54,167.39,167.24,4.245]
[1729502373064,4.68,167.38,167.24,4.245]
[1729502377768,22.62,167.38,167.24,1.254]
[1729502379674,22.62,167.38,167.24,4.245]
[1729502380184,4.68,167.37,167.27,2.9904]
[1729502380373,64.6,167.39,167.27,2.9904]
[1729502380568,4.68,167.36,167.27,2.9904]
[1729502381674,64.6,167.39,167.27,2.9904]
[1729502381872,64.6,167.39,167.25,4.68]
[1729502382076,4.68,167.38,167.25,4.68]
[1729502382472,4.68,167.38,167.3,2.9898]
[1729502382684,4.68,167.38,167.31,2.6424]
[1729502383075,1.2731,167.42,167.34,2.9892]
[1729502383280,3.06662767,167.42,167.32,1.3561]
[1729502383474,4.68,167.41,167.32,1.3561]
[1729502384275,7.72418017,167.41,167.32,1.3561]
[1729502384582,4.68,167.41,167.32,1.3561]
[1729502384778,4.68,167.42,167.32,1.3561]
[1729502384977,4.66,167.42,167.32,1.3561]
[1729502385178,4.66,167.42,167.35,2.989]
[1729502390388,4.66,167.42,167.34,2.9892]
[1729502394682,4.66,167.42,167.32,1.3561]
[1729502394887,4.66,167.42,167.36,2.9889]
[1729502395288,4.66,167.42,167.33,4.66]
[1729502395485,4.66,167.42,167.34,2.9891]
[1729502395993,4.66,167.42,167.32,4.3455]
[1729502396186,4.66,167.42,167.33,4.66]
[1729502398989,4.66,167.42,167.36,2.9887]
[1729502399784,4.66,167.42,167.38,2.9884]
[1729502399987,4.66,167.42,167.33,4.66]
[1729502400295,4.66,167.42,167.36,2.9887]
[1729502400693,4.66,167.45,167.36,2.9887]
[1729502403704,4.66,167.45,167.35,2.989]
[1729502403898,4.66,167.45,167.34,4.66]
[1729502404197,4.66,167.45,167.34,7.6492]
[1729502405096,4.66,167.45,167.35,2.989]
[1729502407103,4.66,167.45,167.32,1.3561]
[1729502407402,1.339,167.44,167.32,6.0161]
[1729502407904,1.339,167.44,167.31,2.6424]
[1729502409196,4.66,167.45,167.36,2.9888]
[1729502409406,4.66,167.45,167.33,4.66]
[1729502410207,4.66,167.45,167.35,2.9889]
[1729502413902,4.66,167.45,167.34,4.66]
[1729502414106,4.66,167.45,167.35,2.9889]
[1729502417007,22.6,167.45,167.34,2.9891]
[1729502417212,53.93500225,167.44,167.3,79.27877264]
[1729502417416,22.6,167.45,167.27,4.66]
[1729502417417,17.94,167.41,167.27,4.66]
[1729502417710,8.4683,167.4,167.27,7.6503]
[1729502417902,8.4683,167.4,167.26,1.2595]
[1729502418112,62.40330225,167.4,167.26,1.2595]
[1729502418915,62.40330225,167.4,167.28,2.9903]
[1729502419112,8.4683,167.4,167.28,2.9903]
[1729502419710,62.40330225,167.4,167.28,2.9903]
[1729502420220,8.4683,167.4,167.28,2.9903]
[1729502421220,8.4683,167.4,167.27,2.9904]
[1729502422018,3.8083,167.4,167.3,2.9899]
[1729502422321,3.8083,167.4,167.25,4.66]
[1729502422519,4.66,167.39,167.25,4.66]
[1729502422715,4.66,167.39,167.31,2.9896]
[1729502423319,4.66,167.39,167.29,4.66]
[1729502423516,4.66,167.39,167.27,4.66]
[1729502423723,4.66,167.39,167.26,4.66]
[1729502424118,4.66,167.39,167.27,2.9904]
[1729502427317,4.66,167.39,167.28,2.9902]
[1729502428317,4.66,167.39,167.27,2.9903]
[1729502428522,3.8083,167.4,167.27,2.9903]
[1729502428822,4.66,167.39,167.27,2.9903]
[1729502429530,22.6,167.39,167.22,1.2769]
[1729502430021,22.6,167.39,167.22,4.2682]
[1729502431021,22.6,167.39,167.23,2.9912]
[1729502437231,22.6,167.39,167.26,2.9906]
[1729502437529,22.6,167.39,167.22,1.2769]
[1729502438929,22.6,167.39,167.25,2.9907]
[1729502439435,22.6,167.39,167.22,1.2769]
[1729502439634,4.66,167.38,167.22,1.2769]
[1729502439836,7.61228035,167.38,167.22,1.2769]
[1729502440634,7.61228035,167.38,167.24,2.9909]
[1729502441031,25.55228035,167.38,167.24,2.9909]
[1729502442744,25.55228035,167.38,167.25,2.9908]
[1729502444136,25.55228035,167.38,167.24,2.991]
[1729502444736,25.55228035,167.38,167.22,4.2682]
[1729502444940,25.55228035,167.38,167.22,2.9913]
[1729502446737,25.55228035,167.38,167.21,2.6522]
[1729502447635,25.55228035,167.38,167.23,2.9912]
[1729502448335,22.6,167.37,167.22,2.9912]
[1729502452844,76.53500225,167.37,167.2,2.9916]
[1729502453138,17.94,167.35,167.18,4.66]
[1729502453330,4.66,167.36,167.18,4.66]
[1729502453331,21.7913,167.34,167.18,7.66982258]
[1729502453539,21.7913,167.34,167.2,2.9917]
[1729502454839,3.8513,167.34,167.25,2.9907]
[1729502455037,3.8513,167.34,167.18,7.66982258]
[1729502455038,4.66,167.33,167.18,7.66982258]
[1729502456036,4.66,167.33,167.24,2.9909]
[1729502456538,4.66,167.32,167.24,2.9909]
[1729502460248,4.66,167.31,167.26,2.9906]
[1729502460448,3.8513,167.34,167.22,4.66]
[1729502460749,7.2462,167.34,167.23,1.315]
[1729502460955,7.2462,167.34,167.23,3.8064]
[1729502461147,7.2462,167.34,167.28,2.9902]
[1729502462448,7.2462,167.34,167.26,7.6505]
[1729502467854,7.2462,167.34,167.26,4.66]
[1729502468053,7.2462,167.34,167.27,2.9904]
[1729502470360,1.2833,167.34,167.31,2.9896]
[1729502470566,4.66,167.36,167.26,4.66]
[1729502470865,1.2464,167.39,167.26,4.66]
[1729502471055,4.66,167.38,167.31,2.9897]
[1729502471763,1.2464,167.39,167.3,4.66]
[1729502472469,6.009,167.4,167.3,4.66]
[1729502472658,5.8873,167.42,167.31,3.8684]
[1729502472866,5.8873,167.42,167.34,2.9892]
[1729502473166,5.8873,167.42,167.34,4.66]
[1729502473469,5.8873,167.42,167.34,7.6492]
[1729502473871,5.8873,167.42,167.33,2.9893]
[1729502476665,5.8873,167.42,167.34,2.9892]
[1729502480074,5.8873,167.42,167.32,2.9894]
[1729502480275,5.8873,167.42,167.31,5.9782]
[1729502480667,5.8873,167.42,167.31,4.66]
[1729502482579,5.8873,167.42,167.31,7.6498]
[1729502482878,5.8873,167.42,167.27,1.2528]
[1729502483077,23.8273,167.42,167.26,5.9457]
[1729502483272,23.8273,167.42,167.19,1.2284]
[1729502483578,23.8273,167.42,167.24,4.66]
[1729502483877,23.8273,167.42,167.26,2.9906]
[1729502484579,23.8273,167.42,167.27,2.9904]
[1729502489082,23.8273,167.42,167.26,2.9906]
[1729502490781,23.8273,167.42,167.27,2.9905]
[1729502492176,23.8273,167.42,167.21,4.66]
[1729502492975,1.0,167.41,167.23,2.9911]
[1729502493384,1.3113,167.4,167.23,2.9911]
[1729502494378,1.3113,167.4,167.19,3.8243]
[1729502494582,1.3113,167.4,167.19,8.4843]
[1729502494778,1.0,167.39,167.19,8.4843]
[1729502494974,17.94,167.37,167.22,2.9914]
[1729502495173,2.5789,167.36,167.22,2.9914]
[1729502497584,2.5789,167.36,167.23,2.9911]
[1729502498088,4.66,167.35,167.25,2.9908]
[1729502498383,4.66,167.34,167.19,8.4843]
[1729502499184,4.66,167.34,167.25,2.9907]
[1729502499385,1.2269,167.33,167.25,2.9907]
[1729502501487,1.2269,167.33,167.19,8.4843]
[1729502501685,4.66,167.32,167.2,4.66]
[1729502501886,5.8869,167.33,167.2,4.66]
[1729502502087,4.66,167.33,167.2,4.66]
[1729502502283,4.66,167.33,167.27,2.9904]
[1729502509884,2.5789,167.36,167.25,2.694]
[1729502510089,2.5789,167.36,167.26,1.279]
[1729502510090,5.9759,167.36,167.26,1.279]
[1729502510390,1.3359,167.36,167.31,2.9896]
[1729502513493,1.3359,167.36,167.26,1.279]
[1729502513697,2.6383,167.36,167.26,1.279]
[1729502513887,2.6383,167.36,167.21,4.64]
[1729502514090,1.2877,167.35,167.21,4.64]
[1729502514295,1.2877,167.35,167.21,7.66652147]
[1729502514597,1.2877,167.35,167.25,2.9908]
[1729502515294,1.2877,167.35,167.21,4.64]
[1729502516198,1.2877,167.35,167.23,2.9912]
[1729502516497,1.2877,167.35,167.21,4.64]
[1729502517194,1.2877,167.35,167.21,7.6315]
[1729502517901,1.2877,167.35,167.22,2.9913]
[1729502518095,1.2877,167.35,167.21,4.64]
[1729502518895,1.2877,167.35,167.23,2.9911]
[1729502523504,1.2877,167.35,167.21,4.64]
[1729502523795,4.64,167.34,167.21,4.64]
[1729502524199,4.64,167.34,167.23,2.9912]
[1729502525706,4.64,167.34,167.21,4.64]
[1729502526008,4.64,167.34,167.22,2.9913]
[1729502526201,4.64,167.34,167.21,4.64]
[1729502526505,4.64,167.34,167.21,7.6315]
[1729502528410,4.64,167.34,167.21,2.9915]
[1729502528804,22.58,167.34,167.2,2.9916]
[1729502529411,22.58,167.34,167.19,8.5577]
[1729502529601,22.58,167.34,167.22,2.9913]
[1729502536810,22.58,167.34,167.19,8.5577]
[1729502537106,22.58,167.34,167.21,2.9915]
[1729502537314,4.64,167.33,167.21,2.9915]
[1729502538417,4.64,167.33,167.19,8.5577]
[1729502538916,4.64,167.33,167.23,2.9911]
[1729502539212,4.64,167.33,167.19,8.5577]
[1729502539812,4.64,167.33,167.22,2.9913]
[1729502541014,4.64,167.33,167.21,2.9915]
[1729502541609,22.58,167.33,167.19,3.9177]
[1729502541913,22.58,167.33,167.2,2.9917]
[1729502542214,22.58,167.33,167.19,3.9177]
[1729502542412,22.58,167.33,167.19,6.9096]
[1729502544617,22.58,167.33,167.17,86.97485672]
[1729502544819,22.58,167.33,167.17,83.98265672]
[1729502545021,22.58,167.33,167.17,86.97495672]
[1729502546116,22.58,167.33,167.16,2.9924]
[1729502549525,22.58,167.33,167.15,76.44429128]
[1729502549721,17.94,167.31,167.15,76.44429128]
[1729502549918,2.5638,167.3,167.15,76.44429128]
[1729502550225,17.94,167.28,167.15,76.44429128]
[1729502551114,4.64,167.27,167.15,79.43679128]
[1729502551317,4.64,167.27,167.15,76.44429128]
[1729502555223,22.58,167.27,167.15,76.44429128]
[1729502561221,17.94,167.25,167.15,76.44429128]
[1729502561536,2.6154,167.24,167.15,76.44429128]
[1729502561824,4.64,167.23,167.15,76.44429128]
[1729502563423,17.94,167.22,167.15,76.44429128]
[1729502565125,5.9646,167.23,167.15,76.44429128]
[1729502567238,17.96,167.22,167.15,73.54429128]
[1729502568829,4.64,167.21,167.15,73.54429128]
[1729502573933,22.6,167.21,167.15,73.54429128]
[1729502576830,22.6,167.21,167.15,72.64429128]
[1729502577233,25.5512729,167.21,167.15,72.64429128]
[1729502579638,22.6,167.21,167.15,72.64429128]
[1729502579941,22.6,167.21,167.15,69.74429128]
[1729502580143,25.53705796,167.21,167.15,69.74429128]
[1729502581341,17.96,167.19,167.15,69.74429128]
[1729502583137,17.96,167.19,167.09,2.6425]
[1729502586043,1.2651,167.18,167.09,2.6425]
[1729502587137,1.2651,167.18,167.07,1.3515]
[1729502587542,2.5551,167.18,167.07,1.3515]
[1729502597244,2.5551,167.18,167.0,2.5554]
[1729502597542,2.2688,167.17,167.01,1.2673]
[1729502597750,17.96,167.15,167.01,1.2673]
[1729502601950,82.68,167.15,167.01,1.2673]
[1729502602754,82.68,167.15,167.02,2.9948]
[1729502604849,82.68,167.15,167.01,1.2673]
[1729502607858,82.68,167.15,167.0,2.5554]
[1729502608149,1.0,167.14,167.0,2.5554]
[1729502611358,17.96,167.11,167.0,2.5554]
[1729502611567,17.96,167.09,167.0,2.5554]
[1729502612851,17.96,167.09,166.94,1.274]
[1729502613057,17.96,167.09,166.96,2.6106]
[1729502615053,22.6,167.08,166.96,2.6106]
[1729502615363,4.64,167.07,166.96,2.6106]
[1729502615661,2.5644,167.1,166.96,2.6106]
[1729502615874,4.64,167.09,166.96,2.6106]
[1729502616259,4.64,167.09,167.0,2.9952]
[1729502616459,4.64,167.09,167.01,1.295]
[1729502616659,4.64,167.08,167.01,1.295]
[1729502616860,4.64,167.08,167.02,2.6113]
[1729502617161,4.64,167.07,167.02,2.6113]
[1729502617666,7.58157668,167.07,167.02,2.6113]
[1729502626372,4.64,167.07,167.02,2.6113]
[1729502626581,4.64,167.09,167.02,2.6113]
[1729502626778,66.0332,167.15,167.02,2.6113]
[1729502626779,4.64,167.11,167.02,2.6113]
[1729502626974,4.64,167.11,167.06,2.9941]
[1729502626975,4.62,167.11,167.06,2.9941]
[1729502627772,2.94545572,167.1,167.02,2.6113]
[1729502628480,4.62,167.09,167.03,2.9947]
[1729502628875,4.62,167.09,167.04,2.9946]
[1729502630278,4.62,167.09,167.02,5.6062]
[1729502630477,4.62,167.09,167.02,2.6113]
[1729502630873,64.72,167.15,167.02,2.6113]
[1729502631079,4.62,167.14,167.03,2.99604392]
[1729502631382,4.62,167.14,167.04,4.62]
[1729502632182,4.62,167.14,167.09,2.9937]
[1729502632584,2.6255,167.19,167.09,2.9937]
[1729502632785,4.62,167.18,167.1,2.9934]
[1729502633983,4.62,167.18,167.11,2.9932]